bitfinex-derivatives/quotes_ETHF0:USTF0_20230101
["timestamp","ask_amount","ask_price","bid_price","bid_amount"]
[1672556252575,3.5,1194.8,1194.7,1.2542083]
[1672556256782,7.89245962,1194.8,1194.6,7.13779992]
[1672556259407,7.89245962,1194.8,1194.6,5.2542083]
[1672556259617,7.89245962,1194.8,1194.6,7.13779992]
[1672556261298,7.89245962,1194.8,1194.6,5.2542083]
[1672556262977,7.89245962,1194.8,1194.6,7.13779992]
[1672556265181,7.89245962,1194.8,1194.6,5.2542083]
[1672556266340,7.89245962,1194.8,1194.6,7.13779992]
[1672556266549,7.89245962,1194.8,1194.6,5.2542083]
[1672556266755,7.89245962,1194.8,1194.6,7.13779992]
[1672556275707,7.89245962,1194.8,1194.6,5.2542083]
[1672556281903,7.89245962,1194.8,1194.6,5.24759438]
[1672556284528,12.91242081,1194.8,1194.6,5.24759438]
[1672556284948,7.89245962,1194.8,1194.6,5.24759438]
[1672556298936,7.89245962,1194.8,1194.6,7.131186]
[1672556314906,7.89245962,1194.8,1194.6,5.24759438]
[1672556315740,7.89245962,1194.8,1194.6,7.131186]
[1672556331728,7.89245962,1194.8,1194.6,5.24759438]
[1672556332041,4.39245962,1194.7,1194.6,5.24759438]
[1672556332881,4.38943711,1194.7,1194.6,5.24759438]
[1672556333616,8.51996119,1194.8,1194.6,5.24759438]
[1672556335194,3.5,1194.8,1194.6,5.24759438]
[1672556335614,3.5,1194.8,1194.6,7.131186]
[1672556336245,3.5,1194.8,1194.6,5.24759438]
[1672556336561,3.5,1194.8,1194.6,7.131186]
[1672556336772,3.5,1194.8,1194.6,5.24759438]
[1672556342452,3.5,1194.8,1194.6,7.131186]
[1672556345078,7.89563944,1194.8,1194.6,7.131186]
[1672556373144,7.89563944,1194.8,1194.7,1.2542083]
[1672556377349,7.89563944,1194.8,1194.6,7.131186]
[1672556377557,7.89563944,1194.8,1194.7,1.2542083]
[1672556377981,7.89563944,1194.8,1194.6,7.131186]
[1672556379236,7.89563944,1194.8,1194.7,1.2542083]
[1672556379447,7.89563944,1194.8,1194.6,7.131186]
[1672556381764,7.89563944,1194.8,1194.7,1.2542083]
[1672556382923,7.89563944,1194.8,1194.6,7.131186]
[1672556393118,7.89563944,1194.8,1194.7,1.2542083]
[1672556402585,7.89563944,1194.8,1194.6,7.131186]
[1672556403004,7.89563944,1194.8,1194.7,1.2542083]
[1672556403209,7.89563944,1194.8,1194.6,7.131186]
[1672556403413,7.89563944,1194.8,1194.7,1.2542083]
[1672556403838,7.89563944,1194.8,1194.7,1.24962342]
[1672556425703,12.91560063,1194.8,1194.6,5.8769777]
[1672556426858,7.89563944,1194.8,1194.6,5.8769777]
[1672556428647,7.89563944,1194.8,1194.6,3.99338608]
[1672556429172,4.39563944,1194.8,1194.6,3.99338608]
[1672556429380,8.39563944,1194.9,1194.8,3.5]
[1672556430221,8.39563944,1194.9,1194.6,5.8769777]
[1672556430641,4.39563944,1194.8,1194.6,5.8769777]
[1672556432139,13.41560063,1194.9,1194.6,5.8769777]
[1672556434356,4.39563944,1194.8,1194.6,5.8769777]
[1672556443269,13.41560063,1194.9,1194.6,5.8769777]
[1672556444217,4.39563944,1194.8,1194.6,5.8769777]
[1672556444428,13.41560063,1194.9,1194.6,5.8769777]
[1672556444638,4.39563944,1194.8,1194.6,5.8769777]
[1672556445058,13.41560063,1194.9,1194.6,5.8769777]
[1672556446111,13.41560063,1194.9,1194.6,8.38631118]
[1672556446325,13.41560063,1194.9,1194.6,5.8769777]
[1672556450744,8.39563944,1194.9,1194.6,8.38631118]
[1672556450941,4.39563944,1194.9,1194.6,16.75531118]
[1672556451268,4.39563944,1195.1,1194.8,2.50933348]
[1672556451474,4.39563944,1195.1,1194.9,1.88146087]
[1672556451689,8.39563944,1195.1,1195.0,3.5]
[1672556452210,4.39563944,1195.1,1195.0,3.5]
[1672556452622,4.0,1195.1,1195.0,3.5]
[1672556453047,8.39563944,1195.1,1195.0,3.5]
[1672556453674,8.39563944,1195.1,1194.7,26.16823867]
[1672556453888,8.39563944,1195.1,1194.8,4.0]
[1672556454094,3.5,1194.9,1194.8,4.0]
[1672556461456,4.39563944,1195.0,1194.8,4.0]
[1672556463559,13.41560063,1195.1,1194.8,4.0]
[1672556471232,8.39563944,1195.1,1194.8,4.0]
[1672556471969,13.41560063,1195.1,1194.8,4.0]
[1672556476801,8.39563944,1195.1,1194.8,4.0]
[1672556477430,13.41560063,1195.1,1194.8,4.0]
[1672556479851,8.39563944,1195.1,1194.8,4.0]
[1672556480580,13.41560063,1195.1,1194.8,4.0]
[1672556480790,8.39563944,1195.1,1194.8,4.0]
[1672556486680,8.39563944,1195.1,1194.8,5.88146087]
[1672556492674,13.41560063,1195.1,1194.8,5.88146087]
[1672556493303,8.39563944,1195.1,1194.8,5.88146087]
[1672556496349,13.41560063,1195.1,1194.8,5.88146087]
[1672556500757,8.39563944,1195.1,1194.8,5.88146087]
[1672556501496,13.41560063,1195.1,1194.8,5.88146087]
[1672556508641,8.39563944,1195.1,1194.8,14.25046087]
[1672556509272,13.41560063,1195.1,1194.8,14.25046087]
[1672556516107,4.39563944,1195.1,1194.9,10.25046087]
[1672556516315,4.39563944,1195.1,1195.0,3.5]
[1672556516744,8.39563944,1195.1,1195.0,3.5]
[1672556516943,4.39563944,1195.1,1195.0,3.5]
[1672556517462,8.39563944,1195.1,1195.0,3.5]
[1672556518625,13.41560063,1195.1,1195.0,3.5]
[1672556519055,9.01996119,1195.1,1195.0,3.5]
[1672556519365,13.41498881,1195.1,1195.0,3.5]
[1672556519998,9.01996119,1195.1,1195.0,3.5]
[1672556520416,13.41498716,1195.1,1195.0,3.5]
[1672556520626,9.01996119,1195.1,1195.0,3.5]
[1672556521573,13.41542529,1195.1,1195.0,3.5]
[1672556521994,9.01996119,1195.1,1195.0,3.5]
[1672556522740,13.41541288,1195.1,1195.0,3.5]
[1672556523476,9.01996119,1195.1,1195.0,3.5]
[1672556523888,9.01996119,1195.1,1194.9,5.25502067]
[1672556524209,7.89548804,1195.0,1194.9,5.25502067]
[1672556524419,7.89548804,1195.0,1194.9,4.0]
[1672556532095,4.39548804,1195.0,1194.9,4.0]
[1672556532824,7.89548804,1195.0,1194.9,4.0]
[1672556536607,7.89548804,1195.0,1194.9,5.25502067]
[1672556536813,3.5,1195.0,1194.9,5.25502067]
[1672556544801,13.41544923,1195.1,1194.9,5.25502067]
[1672556546491,3.5,1195.0,1194.9,5.25502067]
[1672556548379,13.41544923,1195.1,1194.9,5.25502067]
[1672556548802,8.39548804,1195.1,1194.9,5.25502067]
[1672556549640,3.0,1195.0,1194.9,5.25502067]
[1672556561834,3.0,1195.0,1194.9,4.0]
[1672556562360,3.0,1195.0,1194.9,5.25502067]
[1672556562675,3.0,1195.0,1194.9,4.0]
[1672556562873,3.0,1195.0,1194.9,5.25502067]
[1672556563830,3.0,1195.0,1194.9,4.0]
[1672556564028,7.39548804,1195.0,1194.9,4.0]
[1672556565093,7.39548804,1195.0,1194.9,5.25502067]
[1672556565296,7.39548804,1195.0,1194.9,4.0]
[1672556566776,7.39548804,1195.0,1194.9,5.25502067]
[1672556567505,7.39548804,1195.0,1194.9,4.0]
[1672556568350,7.39548804,1195.0,1194.9,5.25502067]
[1672556569402,3.0,1195.0,1194.9,5.25502067]
[1672556570138,7.39548804,1195.0,1194.9,4.0]
[1672556572874,7.39548804,1195.0,1194.9,5.25502067]
[1672556574555,7.39548804,1195.0,1194.9,4.0]
[1672556574760,7.39548804,1195.0,1194.9,5.25502067]
[1672556576337,7.39548804,1195.0,1194.9,4.0]
[1672556576657,7.39548804,1195.0,1194.9,5.25502067]
[1672556578961,7.39548804,1195.0,1194.9,4.0]
[1672556579382,7.39548804,1195.0,1194.9,5.25502067]
[1672556590645,7.39548804,1195.0,1194.9,4.0]
[1672556592737,7.39548804,1195.0,1194.7,14.90702067]
[1672556592955,4.39548804,1194.8,1194.6,3.13648154]
[1672556593175,4.39548804,1194.8,1194.5,16.78848154]
[1672556593176,0.00302743,1194.6,1194.5,16.78848154]
[1672556593583,0.00302743,1194.6,1194.5,3.13648154]
[1672556593896,0.00302743,1194.6,1194.5,7.13648154]
[1672556594325,0.00302743,1194.6,1194.5,5.25502067]
[1672556595053,0.00302743,1194.6,1194.5,4.0]
[1672556598421,0.00302743,1194.6,1194.5,3.99309049]
[1672556620291,3.15e-06,1194.6,1194.5,3.99309049]
[1672556633015,3.15e-06,1194.6,1194.4,6.63648154]
[1672556633219,3.15e-06,1194.6,1194.4,7.13648154]
[1672556635856,3.15e-06,1194.6,1194.4,5.25502067]
[1672556636063,3.15e-06,1194.6,1194.5,1.25502067]
[1672556647110,3.15e-06,1194.6,1194.5,3.13648154]
[1672556648266,3.15e-06,1194.6,1194.5,1.25502067]
[1672556649109,3.15e-06,1194.6,1194.5,3.13648154]
[1672556650268,3.15e-06,1194.6,1194.5,1.25502067]
[1672556653517,3.15e-06,1194.6,1194.4,7.13648154]
[1672556653727,3.15e-06,1194.6,1194.5,1.25502067]
[1672556657094,8.39548804,1194.7,1194.5,1.25502067]
[1672556658353,8.39548804,1194.7,1194.4,7.13648154]
[1672556658876,13.41544923,1194.7,1194.4,7.13648154]
[1672556659086,8.39548804,1194.7,1194.5,1.25502067]
[1672556659826,13.41544923,1194.7,1194.4,7.13648154]
[1672556660877,8.39548804,1194.7,1194.5,1.25502067]
[1672556661295,13.41544923,1194.7,1194.5,1.25502067]
[1672556662136,8.39548804,1194.7,1194.5,1.25502067]
[1672556662768,13.41544923,1194.7,1194.5,1.25502067]
[1672556663822,8.39548804,1194.7,1194.5,1.25502067]
[1672556665818,13.41544923,1194.7,1194.5,1.25502067]
[1672556668653,8.39548804,1194.7,1194.5,1.25502067]
[1672556669077,13.41544923,1194.7,1194.5,1.25502067]
[1672556669283,8.39548804,1194.7,1194.5,1.25502067]
[1672556671911,13.41544923,1194.7,1194.5,1.25502067]
[1672556674330,13.41544923,1194.7,1194.4,7.13648154]
[1672556674643,13.41544923,1194.7,1194.5,1.25502067]
[1672556676954,13.41544923,1194.7,1194.4,7.13648154]
[1672556677169,13.41544923,1194.7,1194.5,1.25502067]
[1672556677380,13.41544923,1194.7,1194.4,7.13648154]
[1672556677591,13.41544923,1194.7,1194.5,1.25502067]
[1672556680958,21.78444923,1194.7,1194.5,1.25502067]
[1672556681156,27.43687706,1194.7,1194.3,1.25502067]
[1672556681367,4.39548804,1194.5,1194.3,5.25502067]
[1672556681580,3.5,1194.4,1194.3,5.25502067]
[1672556683790,3.5,1194.4,1194.3,4.0]
[1672556684101,3.5,1194.4,1194.3,5.25502067]
[1672556684841,3.5,1194.4,1194.3,4.0]
[1672556687469,4.39548804,1194.6,1194.3,5.25502067]
[1672556687779,3.5,1194.5,1194.3,5.25502067]
[1672556687989,3.5,1194.5,1194.3,7.13648154]
[1672556689145,3.5,1194.5,1194.3,5.25502067]
[1672556698711,3.5,1194.5,1194.3,4.0]
[1672556699023,7.89548804,1194.5,1194.3,4.0]
[1672556699233,7.89548804,1194.5,1194.3,3.99410636]
[1672556700182,3.5,1194.5,1194.3,3.99410636]
[1672556704701,7.89548804,1194.5,1194.3,3.99410636]
[1672556704912,3.5,1194.5,1194.3,3.99410636]
[1672556707647,7.89548804,1194.5,1194.3,3.99410636]
[1672556707846,3.5,1194.5,1194.3,3.99410636]
[1672556708269,3.4972903,1194.5,1194.3,3.99410636]
[1672556711322,3.4972903,1194.5,1194.3,5.24912703]
[1672556712159,3.4972903,1194.5,1194.3,3.99410636]
[1672556712796,3.4972903,1194.5,1194.3,5.24912703]
[1672556715741,3.4972903,1194.5,1194.3,7.1305879]
[1672556716155,3.4972903,1194.5,1194.4,1.25502067]
[1672556716793,3.4972903,1194.5,1194.3,7.1305879]
[1672556717420,3.4972903,1194.5,1194.4,1.25502067]
[1672556718158,3.4972903,1194.5,1194.3,7.1305879]
[1672556718374,3.4972903,1194.5,1194.4,1.25502067]
[1672556718784,3.4972903,1194.5,1194.3,7.1305879]
[1672556719512,3.4972903,1194.5,1194.4,1.25502067]
[1672556726992,3.4972903,1194.5,1194.3,7.1305879]
[1672556727200,3.4972903,1194.5,1194.3,3.13648154]
[1672556727405,1.17475856,1194.3,1194.1,3.13709458]
[1672556727620,1.17475856,1194.3,1194.2,1.88146087]
[1672556727621,5.5702466,1194.3,1194.2,1.88146087]
[1672556727930,1.17475856,1194.3,1194.2,1.88146087]
[1672556728146,6.82718639,1194.3,1194.2,1.88146087]
[1672556728354,6.82718639,1194.3,1194.0,4.0]
[1672556728557,4.3898033,1194.1,1193.8,15.53346087]
[1672556728764,3.76292551,1194.1,1194.0,4.0]
[1672556728973,3.76292551,1194.3,1194.0,7.99419517]
[1672556729184,3.76292551,1194.3,1194.1,1.88336847]
[1672556729402,3.76292551,1194.3,1194.0,5.88336847]
[1672556729823,7.76292551,1194.3,1194.0,5.88336847]
[1672556730034,12.15272881,1194.3,1194.0,5.88336847]
[1672556730662,7.76292551,1194.3,1194.0,5.88336847]
[1672556732026,7.76292551,1194.3,1194.0,4.0]
[1672556732237,12.15272881,1194.3,1194.0,4.0]
[1672556732763,3.76292551,1194.2,1194.0,4.0]
[1672556732974,12.15272881,1194.3,1194.0,4.0]
[1672556735194,7.76292551,1194.3,1194.0,4.0]
[1672556737293,4.0,1194.3,1194.0,5.88336847]
[1672556737619,4.0,1194.3,1194.0,4.0]
[1672556737822,7.76292551,1194.3,1194.0,4.0]
[1672556745915,4.0,1194.3,1194.0,4.0]
[1672556748011,7.76292551,1194.3,1194.0,4.0]
[1672556748430,4.0,1194.3,1194.0,4.0]
[1672556748635,7.76292551,1194.3,1194.0,4.0]
[1672556750211,12.15272881,1194.3,1194.0,4.0]
[1672556750430,7.76292551,1194.3,1194.0,4.0]
[1672556750846,3.76292551,1194.2,1194.0,4.0]
[1672556752005,3.5,1194.1,1194.0,4.0]
[1672556757060,7.76292551,1194.3,1194.0,4.0]
[1672556763992,12.15272881,1194.3,1194.0,4.0]
[1672556765041,3.76292551,1194.2,1194.0,4.0]
[1672556767665,3.5,1194.1,1194.0,4.0]
[1672556770297,7.26292551,1194.1,1194.0,4.0]
[1672556776391,3.76292551,1194.1,1194.0,4.0]
[1672556776605,8.15272881,1194.2,1194.0,4.0]
[1672556777128,3.0,1194.1,1194.0,4.0]
[1672556778605,3.76292551,1194.2,1194.0,4.0]
[1672556779014,8.15272881,1194.2,1194.0,4.0]
[1672556779441,3.76292551,1194.2,1194.0,5.88336847]
[1672556787426,3.5,1194.1,1194.0,5.88336847]
[1672556787635,7.26292551,1194.1,1194.0,4.0]
[1672556789429,3.5,1194.1,1194.0,5.88336847]
[1672556789634,8.15272881,1194.2,1194.0,4.0]
[1672556789842,8.15272881,1194.2,1194.0,5.88336847]
[1672556791736,3.5,1194.1,1194.0,5.88336847]
[1672556792050,8.15272881,1194.2,1194.0,5.88336847]
[1672556793632,3.5,1194.1,1194.0,5.88336847]
[1672556794155,8.15272881,1194.2,1194.0,5.88336847]
[1672556794367,3.5,1194.1,1194.0,5.88336847]
[1672556794570,7.26292551,1194.1,1194.0,5.88336847]
[1672556795300,7.26292551,1194.1,1194.0,4.0]
[1672556796670,7.26292551,1194.1,1194.0,5.88336847]
[1672556796993,3.76292551,1194.1,1194.0,5.88336847]
[1672556797200,5.01691806,1194.3,1194.0,11.13078741]
[1672556797201,3.76292551,1194.3,1194.0,11.13078741]
[1672556797399,3.76292551,1194.3,1194.1,1.88416212]
[1672556797825,7.76292551,1194.3,1194.1,1.88416212]
[1672556802672,7.76292551,1194.3,1194.1,1.88210687]
[1672556803301,3.76292551,1194.3,1194.1,1.88210687]
[1672556803826,7.26292551,1194.3,1194.1,1.88210687]
[1672556804557,7.26292551,1194.3,1194.0,6.50933348]
[1672556808133,3.5,1194.3,1194.0,6.50933348]
[1672556809595,4.0,1194.3,1194.0,6.50933348]
[1672556810025,7.76292551,1194.3,1194.0,6.50933348]
[1672556810237,4.0,1194.3,1194.0,6.50933348]
[1672556810764,7.76292551,1194.3,1194.0,6.50933348]
[1672556812551,4.0,1194.3,1194.0,6.50933348]
[1672556815393,8.15272881,1194.4,1194.0,6.50933348]
[1672556815698,7.76292551,1194.4,1194.0,6.50933348]
[1672556815914,3.5,1194.3,1194.0,6.50933348]
[1672556819582,7.26292551,1194.3,1194.0,6.50933348]
[1672556826947,7.26292551,1194.3,1194.0,4.0]
[1672556828307,7.26292551,1194.3,1194.0,6.50933348]
[1672556836933,11.65272881,1194.3,1194.0,6.50933348]
[1672556838926,3.76292551,1194.2,1194.0,6.50933348]
[1672556840509,3.76292551,1194.2,1194.0,4.0]
[1672556840709,3.76292551,1194.2,1194.0,6.50933348]
[1672556841456,3.76292551,1194.1,1194.0,4.0]
[1672556841667,8.15272881,1194.2,1194.0,4.0]
[1672556841876,3.76292551,1194.2,1194.0,4.0]
[1672556847351,3.76292551,1194.2,1194.0,5.25567721]
[1672556855757,3.76292551,1194.1,1194.0,5.25567721]
[1672556855959,8.15272881,1194.2,1194.0,5.25567721]
[1672556856175,3.76292551,1194.2,1194.0,5.25567721]
[1672556857228,8.15272881,1194.2,1194.0,5.25567721]
[1672556858176,3.76292551,1194.2,1194.0,5.25567721]
[1672556859638,8.15272881,1194.2,1194.0,5.25567721]
[1672556861119,3.76292551,1194.2,1194.0,5.25567721]
[1672556861536,8.15272881,1194.2,1194.0,5.25567721]
[1672556864596,3.76292551,1194.2,1194.0,5.25567721]
[1672556865227,3.76292551,1194.2,1194.0,7.13867547]
[1672556865640,11.65272881,1194.3,1194.1,1.25567721]
[1672556868062,7.26292551,1194.3,1194.1,1.25567721]
[1672556868375,11.65272881,1194.3,1194.1,1.25567721]
[1672556870691,7.26292551,1194.3,1194.1,1.25567721]
[1672556871205,11.65272881,1194.3,1194.1,1.25567721]
[1672556871418,7.26292551,1194.3,1194.1,1.25567721]
[1672556872258,3.76292551,1194.2,1194.1,1.25567721]
[1672556872468,3.76292551,1194.2,1194.0,7.13867547]
[1672556872680,3.76292551,1194.2,1194.1,1.25567721]
[1672556873317,11.65272881,1194.3,1194.1,1.25567721]
[1672556876585,3.76292551,1194.2,1194.1,1.25567721]
[1672556876794,11.65272881,1194.3,1194.1,1.25567721]
[1672556879527,7.26292551,1194.3,1194.1,3.13867547]
[1672556881727,7.26292551,1194.3,1194.1,1.25567721]
[1672556881946,7.26292551,1194.3,1194.1,3.13867547]
[1672556891607,7.26292551,1194.3,1194.1,1.25567721]
[1672556895285,7.26292551,1194.3,1194.0,7.13867547]
[1672556895496,3.76292551,1194.2,1194.0,7.13867547]
[1672556896858,3.76292551,1194.2,1194.1,1.25567721]
[1672556898649,3.76292551,1194.2,1194.0,7.13867547]
[1672556900648,3.76292551,1194.2,1194.1,1.25567721]
[1672556901272,3.76292551,1194.2,1194.0,7.13867547]
[1672556902227,3.76292551,1194.2,1194.0,7.13229435]
[1672556904328,8.15272881,1194.2,1194.0,7.13229435]
[1672556904546,3.76292551,1194.2,1194.0,7.13229435]
[1672556904865,3.76292551,1194.2,1194.1,1.25567721]
[1672556905076,3.76292551,1194.2,1194.0,7.13229435]
[1672556906036,3.76292551,1194.2,1194.1,1.25567721]
[1672556908036,3.76292551,1194.2,1194.0,7.13229435]
[1672556908247,3.76292551,1194.2,1194.1,1.25567721]
[1672556910873,3.76292551,1194.2,1194.0,7.13229435]
[1672556911098,3.76292551,1194.2,1194.1,1.25567721]
[1672556912130,11.65272881,1194.3,1194.1,3.13867547]
[1672556913287,7.26292551,1194.3,1194.1,3.13867547]
[1672556913604,11.65272881,1194.3,1194.1,3.13867547]
[1672556913917,7.26292551,1194.3,1194.1,3.13867547]
[1672556914176,3.76292551,1194.3,1194.1,3.13867547]
[1672556914454,9.40672136,1194.6,1194.2,5.64600033]
[1672556914641,4.3898033,1194.6,1194.5,1.25538213]
[1672556914857,8.3898033,1194.7,1194.5,5.25538213]
[1672556915182,8.3898033,1194.7,1194.5,4.0]
[1672556915383,4.0,1194.7,1194.5,4.0]
[1672556933162,4.3898033,1194.9,1194.6,8.369]
[1672556933372,6.27793264,1195.1,1194.6,8.369]
[1672556933373,4.3898033,1195.1,1194.6,8.369]
[1672556933579,4.0,1195.0,1194.6,8.369]
[1672556933775,4.0,1195.0,1194.7,3.5]
[1672556934209,4.0,1195.0,1194.7,14.43683877]
[1672556935262,4.0,1195.0,1194.7,3.5]
[1672556940815,4.0,1195.0,1194.3,25.65400897]
[1672556941021,8.3898033,1195.0,1194.4,4.0]
[1672556941756,16.7588033,1195.0,1194.4,4.0]
[1672556942165,8.3898033,1195.0,1194.4,4.0]
[1672556942376,8.3898033,1195.0,1194.4,12.369]
[1672556942802,8.3898033,1195.0,1194.4,13.62438213]
[1672556943006,8.3898033,1195.0,1194.4,14.80578213]
[1672556948165,8.3898033,1195.0,1194.4,16.68885532]
[1672556948587,4.0,1195.0,1194.6,3.5]
[1672556948802,8.3898033,1195.0,1194.6,3.5]
[1672556953007,4.3898033,1194.9,1194.6,4.75538213]
[1672556953740,3.0,1194.8,1194.6,4.75538213]
[1672556959740,4.3898033,1194.9,1194.6,4.75538213]
[1672556963737,3.5,1194.8,1194.6,4.75538213]
[1672556970993,3.5,1194.8,1194.6,6.63845532]
[1672556972879,7.8898033,1194.8,1194.6,6.63845532]
[1672556976455,7.8898033,1194.8,1194.6,5.25538213]
[1672556976665,7.8898033,1194.8,1194.6,5.24775795]
[1672556978771,12.90672136,1194.8,1194.6,5.24775795]
[1672556980244,7.8898033,1194.8,1194.6,5.24775795]
[1672556990862,7.8898033,1194.8,1194.6,4.0]
[1672556991288,12.90672136,1194.8,1194.6,4.0]
[1672556992021,7.8898033,1194.8,1194.6,4.0]
[1672556992544,12.90672136,1194.8,1194.6,4.0]
[1672556992755,7.8898033,1194.8,1194.6,4.0]
[1672556994862,12.90672136,1194.8,1194.6,4.0]
[1672556997174,7.8898033,1194.8,1194.6,4.0]
[1672556997593,12.90672136,1194.8,1194.6,4.0]
[1672557000320,7.8898033,1194.8,1194.6,4.0]
[1672557013145,7.8898033,1194.8,1194.6,5.88307319]
[1672557013672,7.8898033,1194.8,1194.6,4.0]
[1672557015353,7.8898033,1194.8,1194.6,5.88307319]
[1672557015668,7.8898033,1194.8,1194.6,4.0]
[1672557016182,7.8898033,1194.8,1194.6,5.88307319]
[1672557019233,7.8898033,1194.8,1194.6,4.0]
[1672557026284,12.90672136,1194.8,1194.6,4.0]
[1672557026483,7.8898033,1194.8,1194.6,4.0]
[1672557028591,7.88688456,1194.8,1194.6,4.0]
[1672557036152,7.88688456,1194.8,1194.6,5.88307319]
[1672557039932,12.90380262,1194.8,1194.6,5.88307319]
[1672557043193,7.88688456,1194.8,1194.6,5.88307319]
[1672557065784,4.3898033,1194.7,1194.5,1.88307319]
[1672557065993,4.3898033,1194.7,1194.5,4.0]
[1672557066207,4.0,1194.6,1194.5,5.88307319]
[1672557066620,4.0,1194.6,1194.5,4.0]
[1672557067042,4.0,1194.6,1194.4,4.39240667]
[1672557067253,4.0,1194.6,1194.3,1.88307319]
[1672557067463,4.3898033,1194.5,1194.2,4.39240667]
[1672557067673,3.5,1194.4,1194.3,5.88307319]
[1672557068096,3.5,1194.4,1194.3,4.0]
[1672557069030,3.5,1194.4,1194.2,5.88307319]
[1672557069888,3.5,1194.4,1194.2,4.0]
[1672557071144,3.5,1194.4,1194.1,5.38307319]
[1672557071145,3.5,1194.4,1194.0,4.39240667]
[1672557071347,16.2588033,1194.4,1193.9,1.88307319]
[1672557071666,4.3898033,1194.3,1193.9,1.88307319]
[1672557071981,4.0,1194.2,1194.0,4.0]
[1672557076497,4.0,1194.2,1193.8,24.3787926]
[1672557076707,4.0,1194.2,1193.8,13.652]
[1672557076918,4.0,1194.2,1193.9,4.0]
[1672557095527,4.0,1194.2,1193.9,3.99507242]
[1672557100467,12.369,1194.2,1193.9,3.99507242]
[1672557100874,12.369,1194.2,1193.7,6.63153726]
[1672557101089,13.5504,1194.2,1193.6,1.24846407]
[1672557101298,16.5504,1194.2,1193.5,1.24846407]
[1672557101511,20.9402033,1194.2,1193.5,3.13153726]
[1672557101727,20.9402033,1194.2,1193.6,5.24846407]
[1672557101934,16.5504,1194.2,1193.6,5.24846407]
[1672557102142,5.1814,1194.2,1193.6,7.13153726]
[1672557103191,13.5504,1194.2,1193.6,7.13153726]
[1672557103826,13.5504,1194.2,1193.7,1.24846407]
[1672557104037,13.5504,1194.2,1193.8,3.5]
[1672557105922,17.9402033,1194.2,1193.8,4.74846407]
[1672557106559,9.5712033,1194.2,1193.8,4.74846407]
[1672557107186,5.1814,1194.2,1193.8,4.74846407]
[1672557107718,13.5504,1194.2,1193.8,4.74846407]
[1672557108033,17.9402033,1194.2,1193.8,4.74846407]
[1672557108556,9.5712033,1194.2,1193.8,4.74846407]
[1672557109813,8.3898033,1194.2,1193.9,1.24846407]
[1672557110556,4.3898033,1194.3,1194.0,1.24846407]
[1672557110762,4.3898033,1194.4,1194.1,1.24846407]
[1672557111296,4.0,1194.3,1194.2,4.0]
[1672557112025,4.3898033,1194.4,1194.2,4.0]
[1672557112238,4.0,1194.3,1194.2,4.0]
[1672557117593,4.0,1194.3,1194.1,3.5]
[1672557117802,4.0,1194.3,1194.1,4.0]
[1672557118420,8.3898033,1194.3,1194.1,4.0]
[1672557135242,8.3898033,1194.3,1193.9,2.42986407]
[1672557135450,16.7588033,1194.3,1193.8,12.16424734]
[1672557135660,4.3898033,1194.1,1193.7,3.13153726]
[1672557135870,3.5,1194.0,1193.9,4.0]
[1672557136298,3.5,1194.0,1193.8,3.5]
[1672557136507,3.5,1194.0,1193.8,4.0]
[1672557143764,3.5,1194.0,1193.8,5.24846407]
[1672557147958,3.5,1194.0,1193.8,7.13153726]
[1672557148494,4.3898033,1194.2,1193.8,7.13153726]
[1672557148702,3.5,1194.1,1193.8,7.13153726]
[1672557150704,3.5,1194.1,1193.9,1.24846407]
[1672557151123,14.58812136,1194.3,1193.9,1.24846407]
[1672557151333,9.5712033,1194.3,1193.9,1.24846407]
[1672557151544,4.3898033,1194.2,1193.9,1.24846407]
[1672557151754,3.5,1194.1,1193.9,1.24846407]
[1672557157116,8.3898033,1194.3,1193.9,3.13153726]
[1672557157432,8.3898033,1194.3,1194.0,3.5]
[1672557158379,13.40672136,1194.3,1194.0,3.5]
[1672557159846,4.3898033,1194.2,1194.0,3.5]
[1672557160163,3.5,1194.1,1194.0,3.5]
[1672557181499,3.5,1194.1,1194.0,4.74846407]
[1672557181811,3.5,1194.1,1194.0,3.5]
[1672557182436,3.5,1194.1,1194.0,4.74846407]
[1672557183277,3.5,1194.1,1194.0,3.5]
[1672557183492,3.5,1194.1,1194.0,4.74846407]
[1672557183908,3.5,1194.1,1194.0,3.5]
[1672557184750,3.5,1194.1,1193.9,3.13153726]
[1672557185282,7.8898033,1194.1,1193.9,3.13153726]
[1672557186966,7.8898033,1194.1,1194.0,3.5]
[1672557187182,3.5,1194.1,1194.0,4.74846407]
[1672557192641,7.8898033,1194.1,1194.0,4.74846407]
[1672557193691,3.5,1194.1,1194.0,4.74846407]
[1672557215867,7.8898033,1194.1,1194.0,4.74846407]
[1672557216918,3.5,1194.1,1194.0,4.74846407]
[1672557217127,7.8898033,1194.1,1194.0,4.74846407]
[1672557217548,3.5,1194.1,1194.0,4.74846407]
[1672557221438,7.8898033,1194.1,1194.0,4.74846407]
[1672557223021,3.5,1194.1,1194.0,4.74846407]
[1672557223433,7.8898033,1194.1,1194.0,4.74846407]
[1672557224920,7.8898033,1194.1,1194.0,3.5]
[1672557225648,7.8898033,1194.1,1193.9,3.13153726]
[1672557225859,7.8898033,1194.1,1194.0,3.5]
[1672557227751,7.8898033,1194.1,1193.9,1.24846407]
[1672557231533,7.8898033,1194.1,1194.0,3.5]
[1672557259914,7.8898033,1194.1,1194.0,4.74846407]
[1672557260125,3.5,1194.1,1194.0,4.74846407]
[1672557260334,7.8898033,1194.1,1194.0,4.74846407]
[1672557261281,4.3898033,1194.2,1194.0,4.74846407]
[1672557261487,4.3898033,1194.3,1194.1,3.12719654]
[1672557261704,4.3898033,1194.3,1194.2,0.5]
[1672557262226,4.3898033,1194.4,1194.2,4.0]
[1672557262431,4.3898033,1194.4,1194.2,5.88307319]
[1672557262644,9.40672136,1194.5,1194.2,5.88307319]
[1672557263174,4.3898033,1194.5,1194.2,4.0]
[1672557263381,8.3898033,1194.5,1194.2,4.0]
[1672557263806,3.5,1194.4,1194.2,4.0]
[1672557264742,8.3898033,1194.5,1194.2,4.0]
[1672557265378,4.0,1194.5,1194.2,4.0]
[1672557270108,4.0,1194.5,1194.2,14.84692043]
[1672557271369,4.0,1194.5,1194.2,23.21592043]
[1672557289031,4.0,1194.5,1194.2,14.84692043]
[1672557289240,4.0,1194.5,1194.2,4.0]
[1672557297328,8.3898033,1194.5,1194.2,4.0]